Workbook

Sheet Analisis Kebolehuntungan
B2: Analisis Kebolehuntungan Pelanggan
B3: 20 JANUARI 2013 | D3: NAMA SYARIKAT
B6: Aktiviti Pelanggan | C6: Pelanggan 1 | D6: Pelanggan 2 | E6: Pelanggan 3 | F6: Keseluruhan
B7: Bilangan Pelanggan Aktif—Permulaan Tempoh | C7: 5 | D7: 8 | E7: 8 | F7: =SUM(C7:E7) -> 21
B8: Bilangan Pelanggan Ditambah | C8: 2 | D8: 4 | E8: 4 | F8: =SUM(C8:E8) -> 10
B9: Bilangan Pelanggan Hilang/Ditamatkan | C9: (1) | D9: (2) | E9: (2) | F9: (5)
B10: Bilangan Pelanggan Aktif—Akhir Tempoh | C10: =SUBTOTAL(109,'Analisis Kebolehuntungan'!$C$7:$C$9) -> 6 | D10: =SUBTOTAL(109,'Analisis Kebolehuntungan'!$D$7:$D$9) -> 10 | E10: =SUBTOTAL(109,'Analisis Kebolehuntungan'!$E$7:$E$9) -> 10 | F10: 26
B12: Analisis Kebolehuntungan
B13: Hasil Per Segmen | C13: RM1,500,000.00 | D13: RM1,800,000.00 | E13: RM2,500,000.00 | F13: =SUM('Analisis Kebolehuntungan'!$C13:$E13) -> RM5,800,000.00
B14: Pemberat | C14: =C13/$F$13 -> 25.9% | D14: =D13/$F$13 -> 31.0% | E14: 43.1% | F14: =SUM(C14:E14) -> 100.0%
B16: Kos Jualan
B17: Khidmat dan Kos Sokongan Berterusan | C17: RM1,000,000 | D17: RM1,400,000 | E17: RM1,400,000 | F17: =SUM('Analisis Kebolehuntungan'!$C17:$E17) -> RM3,800,000
B18: Kos Pelanggan Langsung Lain | C18: 200,000 | D18: 100,000 | E18: 100,000 | F18: =SUM('Analisis Kebolehuntungan'!$C18:$E18) -> 400,000
B19: Jumlah Kos Jualan | C19: =SUBTOTAL(109,'Analisis Kebolehuntungan'!$C$17:$C$18) -> 1,200,000 | D19: =SUBTOTAL(109,'Analisis Kebolehuntungan'!$D$17:$D$18) -> 1,500,000 | E19: =SUBTOTAL(109,'Analisis Kebolehuntungan'!$E$17:$E$18) -> 1,500,000 | F19: =SUBTOTAL(109,'Analisis Kebolehuntungan'!$F$17:$F$18) -> 4,200,000
B20: Margin Kasar | C20: =C13-'Analisis Kebolehuntungan'!$C$19 -> RM300,000 | D20: =D13-'Analisis Kebolehuntungan'!$D$19 -> RM300,000 | E20: =E13-'Analisis Kebolehuntungan'!$E$19 -> RM1,000,000 | F20: =F13-'Analisis Kebolehuntungan'!$F$19 -> RM1,600,000
B21: Pemberat | C21: =MAX(0,MIN(1,C20/$F$20)) -> 18.8% | D21: =MAX(0,MIN(1,D20/$F$20)) -> 18.8% | E21: 62.5% | F21: =SUM('Analisis Kebolehuntungan'!$C21:$E21) -> 100.0%
B23: Kos Lain
B24: Pemerolehan Pelanggan | C24: RM105,000 | D24: RM120,000 | E24: RM235,000 | F24: =SUM('Analisis Kebolehuntungan'!$C24:$E24) -> RM460,000
B25: Pemasaran Pelanggan | C25: 150,000 | D25: 125,000 | E25: 275,000 | F25: =SUM('Analisis Kebolehuntungan'!$C25:$E25) -> RM550,000
B26: Penamatan Pelanggan | C26: 80,000 | D26: 190,000 | E26: 140,000 | F26: =SUM('Analisis Kebolehuntungan'!$C26:$E26) -> RM410,000
B27: Jumlah Kos Pelanggan Lain | C27: =SUBTOTAL(109,'Analisis Kebolehuntungan'!$C$24:$C$26) -> 335,000 | D27: =SUBTOTAL(109,'Analisis Kebolehuntungan'!$D$24:$D$26) -> 435,000 | E27: =SUBTOTAL(109,'Analisis Kebolehuntungan'!$E$24:$E$26) -> 650,000 | F27: =SUBTOTAL(109,'Analisis Kebolehuntungan'!$F$24:$F$26) -> 1,420,000
B29: Keuntungan Pelanggan mengikut Segmen | C29: =C20-C27 -> (RM35,000) | D29: =D20-D27 -> (RM135,000) | E29: =E20-E27 -> RM350,000 | F29: =F20-'Analisis Kebolehuntungan'!$F$27 -> RM180,000
B30: Pemberat | C30: =MAX(0,MIN(1,C29/$F$29)) -> 0.0% | D30: =MAX(0,MIN(1,D29/$F$29)) -> 0.0% | E30: 100.0% | F30: =SUM('Analisis Kebolehuntungan'!$C30:$E30) -> 100.0%
B32: Metrik Ringkasan
B33: Kos Purata per Pelanggan Diperoleh | C33: =C24/C8 -> RM52,500 | D33: =D24/D8 -> RM30,000 | E33: =E24/E8 -> RM58,750
B34: Kos Purata per Pelanggan Ditamatkan | C34: =-C26/C9 -> RM80,000 | D34: =-D26/D9 -> RM95,000 | E34: =-E26/E9 -> RM70,000
B35: Kos Pemasaran Purata per Pelanggan Aktif | C35: =C25/'Analisis Kebolehuntungan'!$C$10 -> RM25,000 | D35: =D25/'Analisis Kebolehuntungan'!$D$10 -> RM12,500 | E35: =E25/'Analisis Kebolehuntungan'!$E$10 -> RM27,500
B36: Keuntungan atau Kerugian Purata Per Pelanggan | C36: =C29/'Analisis Kebolehuntungan'!$C$10 -> (RM5,833.33) | D36: =D29/'Analisis Kebolehuntungan'!$D$10 -> (RM13,500.00) | E36: =E29/'Analisis Kebolehuntungan'!$E$10 -> RM35,000.00

Sheet Carta Metrik Ringkasan
B2: Metrik Ringkasan per Pelanggan
B3: =ReportDate -> 20 JANUARI 2013 | R3: =CompanyName -> NAMA SYARIKAT
